bitfinex/quotes_ETHUSD_20250426
["timestamp","ask_amount","ask_price","bid_price","bid_amount"]
[1745707432086,6.0317597,1823.4,1823.3,0.11912758]
[1745707432424,5.48480517,1823.3,1823.1,4.701]
[1745707432715,5.48486178,1823.2,1823.1,4.701]
[1745707438861,6.85546131,1823.2,1823.1,4.701]
[1745707439041,8.08948796,1823.2,1823.1,4.701]
[1745707441762,6.30796178,1823.2,1823.1,4.701]
[1745707441954,5.91,1823.4,1823.1,4.701]
[1745707442320,5.91,1823.4,1823.2,0.7626]
[1745707442757,5.91,1823.4,1823.2,6.24734593]
[1745707443223,12.76380555,1823.8,1823.3,5.48456096]
[1745707443425,5.48356119,1823.7,1823.4,0.7626]
[1745707443625,5.48356119,1823.7,1823.4,5.4646]
[1745707443626,3.0,1823.6,1823.4,5.4646]
[1745707444127,3.0,1823.6,1823.5,0.11985405]
[1745707444521,5.91,1823.8,1823.5,5.60358333]
[1745707444753,5.91,1823.8,1823.6,0.7626]
[1745707444963,5.91,1823.8,1823.7,0.11948801]
[1745707445170,5.91,1823.8,1823.6,6.24624201]
[1745707445377,0.00604354,1823.9,1823.7,0.11961074]
[1745707445675,0.00604354,1823.9,1823.8,5.4814]
[1745707445877,0.00604354,1823.9,1823.8,5.59884168]
[1745707448383,5.48880027,1823.9,1823.8,4.81844168]
[1745707448608,0.00604354,1823.9,1823.8,4.81844168]
[1745707453204,0.00604354,1823.9,1823.8,6.62201953]
[1745707453854,0.00604354,1823.9,1823.8,12.10507688]
[1745707455893,0.00604354,1823.9,1823.8,6.62201953]
[1745707456079,0.00604354,1823.9,1823.8,5.59184168]
[1745707456400,0.00604354,1823.9,1823.8,4.81844168]
[1745707456600,5.48880027,1823.9,1823.8,4.81844168]
[1745707457171,6.0362998,1823.9,1823.8,4.81844168]
[1745707457394,9.8688998,1823.9,1823.8,4.701]
[1745707457559,11.81129273,1823.9,1823.8,4.80489575]
[1745707462088,8.48880027,1823.9,1823.8,4.80489575]
[1745707462481,8.48880027,1823.9,1823.8,4.701]
[1745707463003,3.00604354,1823.9,1823.8,4.80489575]
[1745707463982,0.00604354,1823.9,1823.8,4.80489575]
[1745707464881,5.48880027,1823.9,1823.8,4.80489575]
[1745707467217,5.90088003,1823.9,1823.8,4.80489575]
[1745707467781,5.48880027,1823.9,1823.8,4.80489575]
[1745707467982,0.00604354,1823.9,1823.8,4.80489575]
[1745707468395,0.00604354,1823.9,1823.8,5.28538533]
[1745707468809,5.48880027,1823.9,1823.8,5.28538533]
[1745707469119,0.00604354,1823.9,1823.8,4.80489575]
[1745707470318,0.00604354,1823.9,1823.8,5.57129575]
[1745707470687,0.00604354,1823.9,1823.8,11.0543531]
[1745707471852,0.00604354,1823.9,1823.8,5.57129575]
[1745707472231,0.00604354,1823.9,1823.8,11.0543531]
[1745707472438,0.00604354,1823.9,1823.8,12.70810705]
[1745707473389,0.00604354,1823.9,1823.8,7.2250497]
[1745707474289,0.00604354,1823.9,1823.8,4.80489575]
[1745707475084,0.00604354,1823.9,1823.8,10.2879531]
[1745707475458,0.00604354,1823.9,1823.8,4.80489575]
[1745707476779,5.48880027,1823.9,1823.8,4.80489575]
[1745707477159,5.48880027,1823.9,1823.8,0.10389575]
[1745707477361,6.71677533,1823.9,1823.8,0.10389575]
[1745707477673,5.48305735,1823.8,1823.7,4.698]
[1745707477862,5.48896932,1823.9,1823.7,4.698]
[1745707478059,5.48881215,1823.9,1823.7,4.698]
[1745707479181,0.00604354,1823.9,1823.7,4.698]
[1745707479780,0.00604354,1823.9,1823.7,5.24942]
[1745707480787,5.4888263,1823.9,1823.7,5.24942]
[1745707480993,0.00604354,1823.9,1823.7,4.698]
[1745707483356,0.00604354,1823.9,1823.8,0.797]
[1745707485395,0.00604354,1823.9,1823.7,4.698]
[1745707486061,0.00604354,1823.9,1823.8,4.696]
[1745707487079,0.00604354,1823.9,1823.8,10.17905735]
[1745707487397,0.00604354,1823.9,1823.8,12.54227471]
[1745707489097,0.00604354,1823.9,1823.8,12.64713987]
[1745707490899,0.00604354,1823.9,1823.8,7.16408252]
[1745707491274,0.00604354,1823.9,1823.8,4.80086516]
[1745707493719,0.00604354,1823.9,1823.8,10.28392251]
[1745707493895,0.00604354,1823.9,1823.8,11.11302251]
[1745707495766,0.00604354,1823.9,1823.8,5.62996516]
[1745707497489,0.00604354,1823.9,1823.8,11.11302251]
[1745707497814,0.00604354,1823.9,1823.8,5.62996516]
[1745707498021,0.00604354,1823.9,1823.8,4.80086516]
[1745707503730,6.84386136,1823.9,1823.8,4.79986516]
[1745707508142,6.84386136,1823.9,1823.7,4.694]
[1745707508143,5.48305735,1823.8,1823.7,4.694]
[1745707508336,6.26972952,1823.6,1823.3,0.7671]
[1745707508507,6.26972952,1823.6,1823.2,16.453]
[1745707508709,0.786,1823.6,1823.3,4.694]
[1745707508940,0.786,1823.6,1823.3,10.17849263]
[1745707509243,0.786,1823.6,1823.3,4.694]
[1745707511129,0.786,1823.6,1823.3,10.17850496]
[1745707512341,0.786,1823.6,1823.3,4.694]
[1745707512840,6.26968166,1823.6,1823.3,4.694]
[1745707513043,6.32451129,1823.6,1823.3,4.694]
[1745707513216,5.48445142,1823.4,1822.9,6.30442007]
[1745707513419,5.48445142,1823.4,1823.0,10.17930974]
[1745707514137,11.78916347,1823.4,1823.0,4.694]
[1745707514348,6.30465142,1823.4,1823.0,4.694]
[1745707514548,5.48467513,1823.3,1823.0,4.694]
[1745707515323,1.36769953,1823.4,1823.0,4.694]
[1745707515644,6.85219885,1823.4,1823.0,4.694]
[1745707515846,5.4846916,1823.3,1823.0,4.694]
[1745707516410,8.12835782,1823.4,1823.0,4.694]
[1745707516610,5.48464365,1823.3,1823.0,4.694]
[1745707517250,8.12836946,1823.4,1823.0,4.694]
[1745707517446,7.58086993,1823.4,1823.0,10.17945758]
[1745707517752,6.30465004,1823.4,1823.0,10.17945758]
[1745707518730,5.48468436,1823.3,1823.0,4.694]
[1745707519719,5.48506994,1823.2,1823.1,4.695]
[1745707521825,5.48506994,1823.2,1822.7,6.25152048]
[1745707522026,5.48538013,1823.1,1822.8,4.695]
[1745707522227,5.48534906,1823.1,1822.8,4.695]
[1745707523555,7.96762881,1823.2,1822.9,0.12324974]
[1745707523788,7.42012928,1823.2,1822.9,0.12324974]
[1745707523948,7.42012928,1823.2,1822.8,10.18095482]
[1745707524151,7.42012928,1823.2,1823.0,0.12312199]
[1745707524343,7.42012928,1823.2,1822.9,0.10586451]
[1745707524544,10.42012928,1823.2,1823.1,0.1056516]
[1745707524747,10.42012928,1823.2,1823.0,0.10580381]
[1745707525041,10.42012928,1823.2,1823.1,0.10569736]
[1745707525241,4.93510699,1823.2,1823.1,0.10569736]
[1745707525438,4.93510699,1823.2,1822.8,10.23580961]
[1745707525641,3.7956,1823.2,1823.1,0.10569736]
[1745707525956,5.91,1823.3,1823.1,0.10569736]
[1745707526134,5.91,1823.3,1822.9,6.25080101]
[1745707526334,5.91,1823.3,1823.0,0.10580381]
[1745707526820,11.39459938,1823.3,1823.0,0.10580381]
[1745707527362,13.25694069,1823.3,1823.0,0.10580381]
[1745707527760,13.25694069,1823.3,1822.9,6.25080101]
[1745707527931,5.48488203,1823.2,1822.9,0.7652]
[1745707528130,13.25694069,1823.3,1822.9,0.7652]
[1745707528326,13.25694069,1823.3,1823.0,0.10580381]
[1745707528861,5.48487276,1823.2,1823.0,0.10580381]
[1745707530230,6.25303748,1823.2,1823.0,4.80180381]
[1745707530452,6.25303748,1823.2,1823.0,4.696]
[1745707530657,12.22550399,1823.3,1823.1,0.10523976]
[1745707531066,11.39470399,1823.3,1823.1,0.10523976]
[1745707536876,5.48486178,1823.2,1823.1,0.10523976]
[1745707538800,6.28136178,1823.2,1823.1,0.10523976]
[1745707538961,7.45796836,1823.2,1823.1,0.10523976]
[1745707539484,6.28136178,1823.2,1823.1,0.10523976]
[1745707539679,5.48474902,1823.3,1823.1,0.10523976]
[1745707543583,5.48474902,1823.3,1823.1,4.79923976]
[1745707543788,5.48474902,1823.3,1823.1,4.694]
[1745707543955,5.48474902,1823.3,1823.2,0.10481308]
[1745707544780,7.34726712,1823.3,1823.2,0.10481308]
[1745707545486,7.29243749,1823.3,1823.2,0.10481308]
[1745707545685,8.09233749,1823.3,1823.2,0.10481308]
[1745707549291,7.29243749,1823.3,1823.2,0.10481308]
[1745707553270,11.79561354,1823.4,1823.2,0.10481308]
[1745707556200,5.48456096,1823.3,1823.2,0.10481308]
[1745707556363,6.3112288,1823.4,1823.2,0.10481308]
[1745707556563,11.79566434,1823.4,1823.2,0.10481308]
[1745707557799,11.39443554,1823.4,1823.2,0.10481308]
[1745707558002,11.39443554,1823.4,1823.2,0.66706439]
[1745707558297,5.91,1823.4,1823.2,0.66706439]
[1745707558493,3.0,1823.5,1823.2,0.66706439]
[1745707558663,3.0,1823.5,1823.3,0.7862]
[1745707559077,3.0,1823.5,1823.4,0.10482899]
[1745707559600,8.48395941,1823.5,1823.4,0.10482899]
[1745707560093,11.06473727,1823.5,1823.4,0.10482899]
[1745707560392,5.48441211,1823.4,1823.1,4.694]
[1745707563979,5.48441211,1823.4,1823.2,0.10504183]
[1745707573092,5.48441211,1823.4,1823.2,4.79704183]
[1745707574627,10.9689271,1823.4,1823.2,4.79704183]
[1745707574924,5.48441211,1823.4,1823.2,4.79704183]
[1745707575823,5.48456096,1823.3,1823.2,4.79704183]
[1745707575999,5.48456096,1823.3,1823.2,0.10504183]
[1745707576204,6.58145827,1823.3,1823.2,0.10504183]
[1745707576411,5.48597526,1822.9,1822.7,17.2329]
[1745707576721,5.4859229,1822.9,1822.8,4.692]
[1745707580630,6.72201719,1823.0,1822.8,4.692]
[1745707582438,5.89691719,1823.0,1822.8,4.692]
[1745707585833,5.48576444,1822.9,1822.8,4.692]
[1745707587947,0.7719,1822.9,1822.0,3.0]
[1745707588101,4.31939953,1822.5,1822.1,4.693]
[1745707588305,5.4878718,1822.2,1822.1,4.693]
[1745707590737,5.4878718,1822.2,1822.1,4.81576446]
[1745707591106,0.54749953,1822.3,1822.1,4.81576446]
[1745707591107,6.03525253,1822.3,1822.1,4.81576446]
[1745707591378,11.52309997,1822.3,1822.1,4.81576446]
[1745707591549,6.03525253,1822.3,1822.1,4.81576446]
[1745707592127,5.4878718,1822.2,1822.1,4.81576446]
[1745707593263,6.44731545,1822.3,1822.1,4.81576446]
[1745707593902,5.4878718,1822.2,1822.1,4.81576446]
[1745707595817,6.2588718,1822.2,1822.1,4.81576446]
[1745707596917,6.2588718,1822.2,1822.1,0.12276446]
[1745707597116,5.48820856,1822.1,1821.9,4.694]
[1745707597355,12.169118,1822.2,1822.0,0.10795015]
[1745707599419,5.48817298,1822.1,1822.0,0.10795015]
[1745707602528,6.03567251,1822.1,1822.0,0.10795015]
[1745707606161,5.48849023,1822.0,1821.8,4.693]
[1745707606326,5.48849023,1822.0,1821.9,0.10868998]
[1745707609366,6.03579338,1822.1,1821.9,0.10868998]
[1745707610061,5.48829385,1822.1,1821.9,0.10868998]
[1745707610561,5.4884742,1822.0,1821.9,0.10868998]
[1745707611768,6.69573059,1822.0,1821.9,0.10868998]
[1745707611958,10.44650096,1822.0,1821.9,0.10868998]
[1745707612330,10.44650096,1822.0,1821.3,0.8049]
[1745707612331,5.4901784,1821.5,1821.3,0.8049]
[1745707612535,5.4901784,1821.5,1821.4,4.81584056]
[1745707613563,5.89269796,1821.5,1821.4,4.693]
[1745707614469,0.40251956,1821.5,1821.2,0.8049]
[1745707614773,0.54749953,1821.5,1821.2,5.4979]
[1745707615271,5.49034604,1821.4,1821.2,4.693]
[1745707615649,5.49034604,1821.4,1821.0,6.29392581]
[1745707615852,5.49034604,1821.4,1821.3,0.10362558]
[1745707616063,5.49034604,1821.4,1821.1,4.693]
[1745707616239,5.49034604,1821.4,1821.3,0.10362558]
[1745707616545,11.39980226,1821.6,1821.3,0.10362558]
[1745707616740,11.39980226,1821.6,1821.3,0.8026]
[1745707616942,11.39980226,1821.6,1821.4,0.10351896]
[1745707617272,11.81562247,1821.6,1821.4,0.10351896]
[1745707617448,17.30556074,1821.6,1821.4,0.10351896]
[1745707617849,5.48998078,1821.5,1821.4,0.10351896]
[1745707618047,5.48998078,1821.5,1821.1,10.18402545]
[1745707618374,12.34134976,1821.5,1821.1,4.693]
[1745707618668,12.34134976,1821.5,1821.2,0.10373221]
[1745707618840,6.03808317,1821.3,1821.2,0.10373221]
[1745707619043,6.03808317,1821.3,1821.1,4.693]
[1745707619976,5.49058364,1821.3,1821.1,4.693]
[1745707620771,3.0,1821.4,1821.2,0.8026]
[1745707621069,11.81554828,1821.6,1821.2,6.29333154]
[1745707621274,6.32582021,1821.6,1821.3,0.8026]
[1745707621570,6.32582021,1821.6,1821.3,6.29302128]
[1745707621771,6.32582021,1821.6,1821.5,0.8026]
[1745707621772,5.91,1821.6,1821.5,0.8026]
[1745707621962,11.39883625,1821.9,1821.5,10.98658078]
[1745707622140,3.0,1821.8,1821.5,10.98658078]
[1745707622336,0.42006755,1821.9,1821.5,12.63402539]
[1745707622542,11.39832035,1822.1,1821.7,5.48934258]
[1745707622842,5.48850341,1822.0,1821.6,6.29214288]
[1745707624743,5.89864292,1822.0,1821.6,6.29214288]
[1745707625375,0.41013951,1822.0,1821.6,6.29214288]
[1745707625561,3.0,1822.0,1821.7,0.62921429]
[1745707625876,5.91,1822.3,1821.8,0.86508783]
[1745707626183,5.89521526,1822.4,1822.0,6.29852714]
[1745707626480,11.39697112,1822.5,1822.1,5.48810304]
[1745707626778,5.48649348,1822.7,1822.3,5.48749737]
[1745707626956,6.03370336,1822.8,1822.4,4.694]
[1745707627153,12.16548491,1822.9,1822.5,0.8102]
[1745707627154,11.39594365,1822.9,1822.5,0.8102]
[1745707627364,5.48568821,1823.0,1822.5,6.29696777]
[1745707627558,15.71233521,1823.1,1822.5,7.94473407]
[1745707627788,11.94283521,1823.1,1822.6,5.54134819]
[1745707627955,11.94283521,1823.1,1822.6,5.48642936]
[1745707628154,5.4854943,1823.0,1822.6,5.48642936]
[1745707628480,5.49103353,1823.2,1822.7,6.29634802]
[1745707628650,5.49103353,1823.2,1822.8,5.3236348]
[1745707629056,5.89822545,1823.2,1822.8,5.3236348]
[1745707629482,0.00604354,1823.2,1822.9,5.48570921]
[1745707629795,5.49092205,1823.2,1823.0,0.8102]
[1745707629995,5.48516263,1823.1,1823.0,0.8102]
[1745707630479,5.4910575,1823.2,1823.0,0.8102]
[1745707631365,0.00604354,1823.2,1823.0,0.8102]
[1745707631891,5.49094697,1823.2,1823.0,0.8102]
[1745707633599,5.49093997,1823.2,1823.0,0.8102]
[1745707637500,0.54749953,1823.1,1822.8,4.694]
[1745707637707,5.48576444,1822.9,1822.8,4.694]
[1745707639976,5.485678,1823.0,1822.8,4.694]
[1745707640975,10.97140272,1823.0,1822.8,4.694]
[1745707641610,5.485678,1823.0,1822.7,0.7865]
[1745707641776,5.48600686,1822.9,1822.8,4.69]
[1745707642607,14.39536312,1823.1,1822.8,4.69]
[1745707642777,14.39536312,1823.1,1822.8,5.23765]
[1745707643195,11.80110223,1823.1,1822.8,5.23765]
[1745707643696,6.31573911,1823.1,1822.8,5.23765]
[1745707644198,6.31573911,1823.1,1822.9,0.7865]
[1745707644495,5.91,1823.1,1822.9,0.7865]
[1745707644664,5.91,1823.1,1822.9,1.93751482]
[1745707644864,5.91,1823.1,1822.9,6.62751482]
[1745707645296,15.74347905,1823.5,1822.9,6.62751482]
[1745707645499,5.48441891,1823.4,1823.0,5.48545638]
[1745707645800,11.39397935,1823.5,1823.1,0.7865]
[1745707646092,5.48397935,1823.5,1823.1,0.7865]
[1745707646301,5.89371082,1823.5,1823.1,1.41367466]
[1745707646482,5.48467646,1823.3,1823.1,0.7865]
[1745707646792,5.48486483,1823.2,1822.9,5.4765]
[1745707646993,0.54749953,1823.1,1822.9,4.689]
[1745707647308,5.48575012,1823.0,1822.9,4.689]
[1745707648081,8.90510061,1823.0,1822.9,4.689]
[1745707648414,10.47907732,1823.0,1822.9,4.689]
[1745707648777,5.48601379,1822.9,1822.5,0.7865]
[1745707648978,5.48601379,1822.9,1822.8,4.689]
[1745707649590,6.32935049,1823.0,1822.8,5.4755]
[1745707650114,5.91,1823.0,1822.8,5.4755]
[1745707650409,5.91,1823.0,1822.8,6.57168493]
[1745707650801,5.91,1823.0,1822.8,5.4755]
[1745707652193,11.3955269,1823.0,1822.8,5.4755]
[1745707652390,5.91,1823.0,1822.8,5.4755]
[1745707652986,5.91,1823.0,1822.8,10.96156148]
[1745707653314,5.91,1823.0,1822.8,10.96150577]
[1745707653511,5.91,1823.0,1822.8,12.60627452]
[1745707653816,14.94196077,1823.4,1822.9,6.27184775]
[1745707653986,5.48461203,1823.3,1822.9,6.27184775]
[1745707654612,5.91,1823.4,1823.1,5.48514336]
[1745707654912,5.91,1823.4,1823.2,5.23751434]
[1745707655322,11.39430816,1823.4,1823.2,5.23751434]
[1745707655617,5.48456096,1823.3,1823.2,4.689]
[1745707655784,6.29266096,1823.3,1823.2,4.689]
[1745707655984,9.29266096,1823.3,1823.2,4.689]
[1745707658931,8.48456096,1823.3,1823.2,4.689]
[1745707662116,3.0,1823.3,1823.2,4.689]
[1745707662321,8.48456096,1823.3,1823.2,4.689]
[1745707668525,6.45749953,1823.4,1823.2,5.5172]
[1745707668694,5.89387717,1823.5,1823.2,5.9861]
[1745707669325,0.40973147,1823.5,1823.2,5.9861]
[1745707669638,11.9413013,1823.6,1823.2,5.9861]
[1745707670002,5.48398668,1823.5,1823.2,5.9861]
[1745707670199,5.48398668,1823.5,1823.3,0.59861]
[1745707671303,5.48398668,1823.5,1823.2,5.9861]
[1745707671501,5.48429402,1823.4,1823.2,5.9861]
[1745707671741,6.03179355,1823.4,1823.2,5.5172]
[1745707672850,5.48456096,1823.3,1823.2,5.5172]
[1745707673031,5.48456096,1823.3,1823.2,4.689]
[1745707675001,8.48456096,1823.3,1823.2,4.689]
[1745707678540,10.06841604,1823.3,1823.2,4.689]
[1745707679137,5.4855753,1823.0,1822.8,0.8025]
[1745707679337,5.4855753,1823.0,1822.9,4.687]
[1745707683137,5.90247285,1823.0,1822.9,4.687]
[1745707683524,5.90247285,1823.0,1822.2,0.7895]
[1745707683525,0.7567,1822.9,1822.2,0.7895]
[1745707683711,5.48748582,1822.4,1822.3,4.687]
[1745707684310,6.03463256,1822.5,1822.3,4.687]
[1745707684618,0.54749953,1822.5,1822.3,4.687]
[1745707685346,0.95575544,1822.5,1822.3,4.687]
[1745707685552,9.45749953,1822.8,1822.4,0.773]
[1745707685718,14.94377477,1822.8,1822.4,0.773]
[1745707685920,5.48648059,1822.7,1822.4,0.773]
[1745707686951,6.03432358,1822.6,1822.4,0.773]
[1745707687141,6.03432358,1822.6,1822.3,4.687]
[1745707687142,5.48696844,1822.5,1822.3,4.687]
[1745707687853,5.48726953,1822.4,1822.3,4.687]
[1745707689023,6.03476906,1822.4,1822.3,4.687]
[1745707689633,6.03476906,1822.4,1821.9,4.688]
[1745707689634,3.7853,1822.3,1821.9,4.688]
[1745707689955,6.03548222,1822.2,1821.9,5.461]
[1745707690821,0.54749953,1822.2,1821.9,5.461]
[1745707691617,6.87562923,1822.2,1821.9,4.688]
[1745707691820,5.48836408,1822.1,1821.9,4.688]
[1745707692020,6.82082279,1822.2,1821.9,4.688]
[1745707692854,5.4883678,1822.1,1821.9,4.688]
[1745707693262,6.03553257,1822.2,1821.9,4.688]
[1745707693560,5.48803304,1822.2,1822.0,0.773]
[1745707694056,8.48771225,1822.3,1822.0,0.773]
[1745707694057,8.48775022,1822.3,1822.0,0.773]
[1745707694747,5.48792441,1822.2,1822.0,0.773]
[1745707695329,5.48817298,1822.1,1822.0,0.773]
[1745707695524,5.48817298,1822.1,1821.9,4.688]
[1745707695930,6.31999913,1822.1,1821.9,4.688]
[1745707697966,11.39859611,1822.0,1821.7,21.148]
[1745707698267,5.91,1822.0,1821.8,0.7587]
[1745707699142,11.39848511,1822.0,1821.8,0.7587]
[1745707699979,11.39848511,1822.0,1821.7,16.46]
[1745707699980,5.48907673,1821.8,1821.7,16.46]
[1745707700968,6.86803946,1821.9,1821.7,16.46]
[1745707701143,12.35708799,1821.9,1821.7,16.46]
[1745707701483,6.86803946,1821.9,1821.7,16.46]
[1745707701681,0.54749953,1821.9,1821.7,16.46]
[1745707701883,5.48890673,1821.9,1821.7,16.46]
[1745707702087,5.91,1822.0,1821.7,18.65039]
[1745707702394,5.91,1822.0,1821.8,6.24479949]
[1745707702748,5.91,1822.0,1821.9,5.48877545]
[1745707703080,5.91,1822.0,1821.8,6.2448436]
[1745707703278,5.91,1822.0,1821.9,6.11325981]
[1745707703473,5.91,1822.0,1821.9,6.86915981]
[1745707703839,0.54749953,1822.0,1821.3,0.7559]
[1745707704045,0.54749953,1821.8,1821.3,10.9344611]
[1745707704346,5.48944376,1821.7,1821.3,10.93436847]
[1745707704536,6.03673424,1821.8,1821.3,10.93436847]
[1745707705778,5.48943429,1821.7,1821.3,10.93436847]
[1745707705952,5.48943429,1821.7,1821.3,12.57687889]
[1745707706153,6.03670371,1821.8,1821.3,7.08641042]
[1745707706355,5.48951118,1821.7,1821.3,12.57682592]
[1745707706554,6.0366897,1821.8,1821.4,5.49024927]
[1745707709058,12.63179372,1821.9,1821.4,5.49012363]
[1745707709242,12.63179372,1821.9,1821.4,7.2968221]
[1745707709447,11.80219372,1821.9,1821.5,0.7721]
[1745707709646,11.80234671,1821.9,1821.5,0.7721]
[1745707709846,17.29138788,1821.9,1821.5,0.7721]
[1745707710203,11.80234671,1821.9,1821.5,0.7721]
[1745707710695,11.80234671,1821.9,1821.5,6.26204829]
[1745707710845,6.31337857,1821.9,1821.5,7.61793495]
[1745707711046,11.80220728,1821.9,1821.5,7.61793495]
[1745707711854,5.91,1821.9,1821.6,5.48947302]
[1745707712178,5.91,1821.9,1821.7,4.689]
[1745707712389,8.48866287,1822.0,1821.7,4.689]
[1745707712962,13.9774173,1822.0,1821.7,4.689]
[1745707713166,5.48889291,1821.9,1821.7,4.689]
[1745707714806,9.03621298,1822.0,1821.7,4.689]
[1745707715094,3.54749953,1822.0,1821.7,4.689]
[1745707715277,9.03608373,1822.0,1821.7,4.689]
[1745707715483,9.43805769,1822.0,1821.8,0.8043]
[1745707716290,8.89055816,1822.0,1821.8,0.8043]
[1745707716708,5.4880206,1822.2,1821.8,1.35363]
[1745707716992,5.4880206,1822.2,1821.8,6.84255241]
[1745707717993,5.48823599,1822.1,1821.8,1.35363]
[1745707718192,5.48823599,1822.1,1821.8,0.8043]
[1745707721288,7.26782628,1822.2,1821.8,0.8043]
[1745707721467,12.75599376,1822.2,1821.8,0.8043]
[1745707722288,11.93749376,1822.2,1821.8,0.8043]
[1745707722499,6.44932628,1822.2,1821.8,0.8043]
[1745707723098,11.93746515,1822.2,1821.8,0.8043]
[1745707723268,6.44932628,1822.2,1821.8,6.29333042]
[1745707723600,11.93744957,1822.2,1821.8,7.94047983]
[1745707724002,11.52365421,1822.2,1821.8,7.94047983]
[1745707724190,6.03553092,1822.2,1821.8,7.94047983]
[1745707724391,11.52368044,1822.2,1821.8,2.45144941]
[1745707724799,6.03553092,1822.2,1821.8,2.45144941]
[1745707724976,0.54749953,1822.2,1821.8,7.94040134]
[1745707725172,8.48773522,1822.3,1822.0,0.7595]
[1745707726505,11.80404275,1822.5,1822.1,4.688]
[1745707726668,11.39709283,1822.5,1822.2,0.7595]
[1745707726867,5.48709283,1822.5,1822.2,0.7595]
[1745707727070,10.97431754,1822.5,1822.2,0.7595]
[1745707727271,6.93927454,1822.5,1822.2,0.7595]
[1745707727683,5.48732536,1822.4,1822.2,0.7595]
[1745707728401,6.93927454,1822.5,1822.2,0.7595]
[1745707728402,8.48719507,1822.5,1822.2,0.7595]
[1745707730217,5.48675894,1822.6,1822.2,0.7595]
[1745707730529,8.48668126,1822.6,1822.3,0.8307]
[1745707731328,3.0,1822.6,1822.3,0.8307]
[1745707731678,8.48671169,1822.6,1822.3,0.8307]
[1745707733683,3.0,1822.6,1822.3,6.31826479]
[1745707734013,3.0,1822.6,1822.3,0.8307]
[1745707734322,8.48668571,1822.6,1822.3,0.8307]
[1745707734504,3.0,1822.6,1822.3,0.8307]
[1745707734811,8.48671375,1822.6,1822.3,0.8307]
[1745707735008,5.4870914,1822.5,1822.3,0.8307]
[1745707736213,9.03436006,1822.6,1822.3,0.8307]
[1745707737613,5.48709328,1822.5,1822.3,0.8307]
[1745707739822,5.48762634,1822.3,1822.1,5.467]
[1745707740788,5.48762634,1822.3,1822.1,4.688]
[1745707743421,6.03487487,1822.4,1822.1,4.688]
[1745707752331,5.48759826,1822.3,1822.1,4.688]
[1745707754149,6.03496194,1822.4,1822.1,4.688]
[1745707755546,5.48761806,1822.3,1822.1,4.688]
[1745707759545,0.54749953,1822.2,1822.1,4.688]
[1745707759706,9.09020096,1822.2,1822.1,4.688]
[1745707760345,9.03537133,1822.2,1822.1,4.688]
[1745707760935,9.09020096,1822.2,1822.1,4.688]
[1745707761958,9.09020096,1822.2,1821.6,6.32224899]
[1745707761959,5.48899663,1821.9,1821.8,4.686]
[1745707762251,6.03649616,1821.9,1821.8,4.686]
[1745707762652,6.09132579,1821.9,1821.8,4.686]
[1745707763964,15.76799616,1821.9,1821.8,4.686]
[1745707764250,5.4896794,1821.6,1821.5,21.153]
[1745707764453,9.09200856,1821.6,1821.5,21.153]
[1745707764664,9.85867893,1821.6,1821.5,21.153]
[1745707768477,15.76867893,1821.6,1821.5,4.686]
[1745707769171,14.94717893,1821.6,1821.5,4.686]
[1745707769540,15.36368081,1821.6,1821.5,4.686]
[1745707780730,16.13342633,1821.6,1821.5,4.686]
[1745707781489,16.89282633,1821.6,1821.5,4.686]
[1745707781927,5.49071648,1821.3,1821.2,4.688]
[1745707782721,5.49071648,1821.3,1820.9,1.0620822]
[1745707782722,5.49130483,1821.1,1820.9,1.0620822]
[1745707782900,5.90454827,1821.1,1820.9,5.7480822]
[1745707783715,5.90454827,1821.1,1820.9,4.9858822]
[1745707784301,5.49148819,1821.0,1820.9,4.9858822]
[1745707784733,3.41324344,1821.1,1820.9,5.7480822]
[1745707785234,5.49148819,1821.0,1820.9,5.7480822]
[1745707785442,12.77758772,1821.0,1820.9,0.2998822]
[1745707785739,17.64581483,1821.0,1820.9,0.2998822]
[1745707786241,5.49342759,1820.4,1820.1,5.4747]
[1745707786438,5.96482963,1820.5,1820.1,5.4747]
[1745707786629,6.04095595,1820.4,1820.1,5.4747]
[1745707786841,6.45143178,1820.4,1820.1,5.4747]
[1745707787369,0.41047583,1820.4,1820.1,5.4747]
[1745707787551,5.91,1820.5,1820.3,0.7877]
[1745707788337,3.8286,1820.4,1819.8,6.28267569]
[1745707788653,5.49421243,1820.1,1819.8,0.7877]
[1745707789024,6.04171196,1820.1,1819.8,0.7877]
[1745707789224,6.04171196,1820.1,1819.9,0.10380056]
[1745707790852,0.54749953,1820.2,1819.9,0.10380056]
[1745707791155,0.8286,1820.4,1819.9,0.10380056]
[1745707791156,3.0,1820.3,1819.9,0.10380056]
[1745707791524,9.04093708,1820.4,1820.0,6.25755083]
[1745707791724,11.81373203,1820.5,1820.1,5.49418394]
[1745707791924,11.81373203,1820.5,1820.2,0.7631]
[1745707792347,11.81373203,1820.5,1820.3,0.10944727]
[1745707792348,6.0407977,1820.4,1820.3,0.10944727]
[1745707792743,6.0407977,1820.4,1819.9,11.62782262]
[1745707792744,4.33569953,1820.4,1819.9,0.7631]
[1745707792955,4.33569953,1820.4,1819.2,3.0]
[1745707792956,5.49510935,1819.8,1819.7,5.4511]
[1745707793132,5.49490971,1819.9,1819.7,0.7631]
[1745707793534,5.49536423,1819.8,1819.5,0.7631]
[1745707793735,5.49536423,1819.8,1819.6,4.688]
[1745707793935,0.54749953,1819.9,1819.6,4.688]
[1745707794164,11.40455663,1820.0,1819.6,11.27822713]
[1745707794451,11.40455663,1820.0,1819.7,0.7631]
[1745707795667,3.54749953,1819.9,1819.5,0.7756]
[1745707795954,5.49548532,1819.7,1819.5,0.7756]
[1745707796154,5.90942252,1819.7,1819.5,0.7756]
[1745707796357,5.90952457,1819.7,1819.5,0.7756]
[1745707796562,7.41318162,1819.7,1819.3,5.4646]
[1745707796876,0.96143673,1819.7,1819.3,5.4646]
[1745707797028,0.4139372,1819.7,1819.3,10.96095535]
[1745707797333,5.91,1820.0,1819.7,5.49529501]
[1745707797539,3.0,1820.2,1819.9,0.7756]
[1745707797937,8.49402982,1820.2,1819.9,0.7756]
[1745707798326,8.90879135,1820.2,1819.9,0.7756]
[1745707799256,3.41476153,1820.2,1819.9,6.27034503]
[1745707799465,6.0410848,1820.4,1819.9,7.36618768]
[1745707799759,6.04097833,1820.4,1819.9,7.3661385]